bitfinex-derivatives/quotes_BTCF0:USTF0_20260118
["timestamp","ask_amount","ask_price","bid_price","bid_amount"]
[1768771816618,0.00230636,95389.0,95375.0,0.210333]
[1768771816918,0.00230636,95389.0,95377.0,0.210333]
[1768771817118,0.00230636,95389.0,95378.0,0.210333]
[1768771817313,0.00230636,95389.0,95380.0,0.210333]
[1768771820223,0.00230636,95389.0,95381.0,0.210333]
[1768771823418,0.09444,95392.0,95381.0,0.210333]
[1768771827528,0.1046832,95391.0,95381.0,0.210333]
[1768771833227,0.1046832,95391.0,95381.0,0.09553157]
[1768771833423,0.1046832,95391.0,95375.0,0.20765596]
[1768771834029,0.1046832,95391.0,95376.0,0.09024327]
[1768771834420,0.1046832,95391.0,95376.0,0.20765596]
[1768771837035,0.0944,95394.0,95376.0,0.20765596]
[1768771837342,0.11068623,95392.0,95371.0,0.10889518]
[1768771837735,0.11068623,95392.0,95372.0,0.09440617]
[1768771837932,0.11068623,95392.0,95373.0,0.09440617]
[1768771838239,0.11068623,95392.0,95373.0,0.20330135]
[1768771838633,0.0944,95394.0,95374.0,0.20330135]
[1768771840534,0.11068623,95392.0,95369.0,0.19111301]
[1768771840743,0.20908843,95388.0,95369.0,0.00230684]
[1768771840935,0.11068623,95386.0,95369.0,0.00230684]
[1768771859562,0.0944,95387.0,95370.0,0.09761687]
[1768771860173,0.0944,95387.0,95370.0,0.10810587]
[1768771860361,0.0944,95387.0,95370.0,0.22666426]
[1768771860866,0.0944,95387.0,95371.0,0.09761687]
[1768771861666,0.0944,95387.0,95371.0,0.10810587]
[1768771862168,0.0944,95387.0,95371.0,0.09761687]
[1768771862358,0.0944,95387.0,95372.0,0.21617526]
[1768771869573,0.0944,95387.0,95372.0,0.09761687]
[1768771872975,0.0944,95387.0,95369.0,0.00230684]
[1768771874378,0.0944,95389.0,95369.0,0.00230684]
[1768771874578,0.21016371,95389.0,95369.0,0.00230684]
[1768771875380,0.20736786,95388.0,95369.0,0.00230684]
[1768771875679,0.20736786,95386.0,95369.0,0.00230684]
[1768771875876,0.11576371,95384.0,95369.0,0.00230684]
[1768771882889,0.21554174,95384.0,95369.0,0.00230684]
[1768771883193,0.11039436,95372.0,95355.0,0.07553377]
[1768771883384,0.11039436,95372.0,95354.0,0.16993377]
[1768771884191,0.11039436,95372.0,95354.0,0.0944]
[1768771886189,0.11039436,95371.0,95352.0,0.09258107]
[1768771886394,0.11039436,95370.0,95351.0,0.0944]
[1768771886893,0.11039436,95370.0,95350.0,0.07553377]
[1768771887194,0.11039436,95370.0,95350.0,0.16993377]
[1768771888289,0.11039436,95370.0,95350.0,0.0944]
[1768771890097,0.11039436,95370.0,95349.0,0.00230733]
[1768771890397,0.11039436,95370.0,95349.0,0.09670733]
[1768771893395,0.21017239,95366.0,95349.0,0.00230733]
[1768771893702,0.11039436,95365.0,95349.0,0.00230733]
[1768771895201,0.21017239,95372.0,95349.0,0.00230733]
[1768771895498,0.11039436,95371.0,95350.0,0.010491]
[1768771896808,0.11039436,95371.0,95349.0,0.01279833]
[1768771898694,0.11039436,95371.0,95350.0,0.010491]
[1768771898896,0.11126351,95369.0,95350.0,0.11515447]
[1768771899706,0.11126351,95369.0,95350.0,0.10466347]
[1768771910719,0.11126351,95369.0,95349.0,0.01279833]
[1768771910925,0.11126351,95369.0,95350.0,0.10466347]
[1768771911223,0.11126351,95369.0,95349.0,0.01279833]
[1768771912025,0.11126351,95369.0,95350.0,0.010491]
[1768771912526,0.11126351,95369.0,95349.0,0.00230733]
[1768771912720,0.20761509,95369.0,95349.0,0.00230733]
[1768771912928,0.22106819,95360.0,95349.0,0.00230733]
[1768771913117,0.11640472,95359.0,95349.0,0.00230733]
[1768771913820,0.11640472,95359.0,95345.0,0.07553377]
[1768771914020,0.11640472,95359.0,95344.0,0.07553377]
[1768771921533,0.10466347,95360.0,95346.0,0.010491]
[1768771922232,0.10466347,95360.0,95347.0,0.010491]
[1768771929137,0.10466347,95360.0,95346.0,0.010491]
[1768771929639,0.10466347,95360.0,95344.0,0.08602477]
[1768771929937,0.10466347,95360.0,95345.0,0.010491]
[1768771931538,0.10466347,95360.0,95344.0,0.08602477]
[1768771931742,0.10466347,95360.0,95344.0,0.07553377]
[1768771932045,0.10466347,95360.0,95344.0,0.08602477]
[1768771937145,0.10466347,95360.0,95345.0,0.010491]
[1768771937543,0.22106819,95360.0,95345.0,0.010491]
[1768771937945,0.22106819,95360.0,95344.0,0.08602477]
[1768771938442,0.22106819,95360.0,95344.0,0.07553377]
[1768771940147,0.22106819,95360.0,95345.0,0.07553377]
[1768771940341,0.2127563,95365.0,95350.0,0.10466347]
[1768771940540,0.11640472,95365.0,95351.0,0.010491]
[1768771941548,0.11640472,95365.0,95352.0,0.010491]
[1768771942540,0.11640472,95365.0,95347.0,0.010491]
[1768771942740,0.11640472,95365.0,95349.0,0.010491]
[1768771943651,0.11640472,95365.0,95346.0,0.16615536]
[1768771943943,0.21805891,95360.0,95346.0,0.07553377]
[1768771944138,0.21805891,95360.0,95345.0,0.07553377]
[1768771944334,0.21805891,95360.0,95345.0,0.08602477]
[1768771945238,0.21805891,95360.0,95346.0,0.010491]
[1768771945439,0.21805891,95360.0,95345.0,0.07553377]
[1768771945641,0.11339544,95357.0,95345.0,0.07553377]
[1768771945954,0.11339544,95357.0,95344.0,0.07553377]
[1768771947644,0.11339544,95357.0,95343.0,0.16997377]
[1768771951850,0.10482074,95360.0,95343.0,0.16997377]
[1768771952251,0.21821618,95360.0,95343.0,0.16997377]
[1768771952451,0.11339544,95359.0,95343.0,0.16997377]
[1768771954952,0.11339544,95356.0,95343.0,0.09444]
[1768771959048,0.11027495,95359.0,95343.0,0.09444]
[1768771959463,0.11027495,95359.0,95343.0,0.104932]
[1768771959652,0.11027495,95359.0,95343.0,0.09444]
[1768771962960,0.11027495,95359.0,95343.0,0.104932]
[1768771964048,0.11027495,95359.0,95346.0,0.010491]
[1768771964254,0.00015727,95360.0,95346.0,0.010491]
[1768771964462,0.00015727,95360.0,95348.0,0.010491]
[1768771966764,0.00015727,95360.0,95345.0,0.21599804]
[1768771967068,0.00015727,95360.0,95348.0,0.010491]
[1768771967248,0.00015727,95360.0,95346.0,0.010491]
[1768771967454,0.00015727,95360.0,95350.0,0.010491]
[1768771967864,0.00015727,95360.0,95348.0,0.010491]
[1768771968058,0.00015727,95360.0,95349.0,0.010491]
[1768771969064,0.00015727,95360.0,95350.0,0.010491]
[1768771971568,0.00015727,95360.0,95349.0,0.010491]
[1768771973869,0.00015727,95360.0,95346.0,0.20550704]
[1768771974570,0.00015727,95360.0,95347.0,0.09959884]
[1768771974769,0.00015727,95360.0,95348.0,0.010491]
[1768771975465,0.00015727,95360.0,95349.0,0.010491]
[1768771976469,0.00015727,95360.0,95350.0,0.010491]
[1768771978972,1e-08,95360.0,95350.0,0.21078195]
[1768771979159,0.00230684,95369.0,95357.0,0.11118311]
[1768771979360,0.09444,95375.0,95361.0,0.11008884]
[1768771979575,0.09444,95375.0,95362.0,0.010489]
[1768771981168,0.09444,95375.0,95363.0,0.010489]
[1768771981474,0.09444,95375.0,95365.0,0.010489]
[1768771982277,0.09444,95375.0,95363.0,0.010489]
[1768771983273,0.00230647,95384.0,95367.0,0.21078195]
[1768771983472,0.20702678,95400.0,95380.0,0.21078195]
[1768771983666,0.00230598,95404.0,95384.0,0.21078195]
[1768771983868,0.00230598,95404.0,95386.0,0.21078195]
[1768771986177,0.11173777,95404.0,95386.0,0.09959884]
[1768771986575,0.09759499,95403.0,95380.0,0.09975611]
[1768771986880,0.10943179,95402.0,95381.0,0.09959884]
[1768771987081,0.10943179,95402.0,95381.0,0.21078195]
[1768771987386,0.10943179,95402.0,95382.0,0.09959884]
[1768771988672,0.20702678,95401.0,95380.0,0.00015727]
[1768771988877,0.10943179,95400.0,95380.0,0.00015727]
[1768771993180,0.20702678,95400.0,95380.0,0.00015727]
[1768771993491,0.10943179,95399.0,95380.0,0.00015727]
[1768771994283,0.10943179,95399.0,95380.0,0.01064527]
[1768771994578,0.10943179,95399.0,95381.0,0.010487]
[1768771997691,0.10943179,95399.0,95380.0,0.00015727]
[1768771998094,0.10943179,95399.0,95386.0,0.010487]
[1768771998994,0.10943179,95399.0,95380.0,0.12182838]
[1768771999197,0.10943179,95399.0,95384.0,0.010487]
[1768772001690,0.10943179,95399.0,95380.0,0.21093922]
[1768772001896,0.10943179,95399.0,95382.0,0.010487]
[1768772002902,0.10943179,95399.0,95383.0,0.010487]
[1768772003902,0.10943179,95399.0,95384.0,0.010487]
[1768772005403,0.10943179,95399.0,95380.0,0.21093922]
[1768772007502,0.10943179,95399.0,95383.0,0.010487]
[1768772007701,0.10943179,95399.0,95381.0,0.010487]
[1768772007902,0.10943179,95399.0,95382.0,0.010487]
[1768772008302,0.10943179,95399.0,95383.0,0.010487]
[1768772009308,0.10943179,95399.0,95380.0,0.21093922]
[1768772010006,0.10943179,95399.0,95382.0,0.010487]
[1768772010207,0.10943179,95399.0,95383.0,0.010487]
[1768772010995,0.10943179,95399.0,95384.0,0.010487]
[1768772012309,0.10943179,95399.0,95380.0,0.21093922]
[1768772012509,0.10943179,95399.0,95381.0,0.09379906]
[1768772013008,0.1143137,95403.0,95381.0,0.20485642]
[1768772013207,0.00230598,95404.0,95386.0,0.20485642]
[1768772013515,0.1143137,95411.0,95397.0,0.010486]
[1768772013810,0.2087137,95414.0,95398.0,0.010486]
[1768772014114,0.1143137,95413.0,95398.0,0.010486]
[1768772014514,0.1143137,95413.0,95396.0,0.010486]
[1768772017612,0.1143137,95413.0,95393.0,0.09379906]
[1768772018613,0.1143137,95413.0,95396.0,0.010486]
[1768772019412,0.1143137,95413.0,95397.0,0.010486]
[1768772020309,0.1143137,95413.0,95393.0,0.09379906]
[1768772020514,0.11783676,95409.0,95390.0,0.104886]
[1768772020713,0.11783676,95409.0,95391.0,0.010486]
[1768772021216,0.11783676,95409.0,95393.0,0.010486]
[1768772022408,0.11783676,95409.0,95394.0,0.010486]
[1768772023717,0.11783676,95409.0,95395.0,0.010486]
[1768772024220,0.11783676,95409.0,95390.0,0.19896947]
[1768772024519,0.11783676,95409.0,95392.0,0.010486]
[1768772026222,0.11783676,95408.0,95393.0,0.010486]
[1768772026416,0.11783676,95408.0,95394.0,0.010486]
[1768772029222,0.11783676,95408.0,95395.0,0.010486]
[1768772030926,0.11783676,95408.0,95394.0,0.010486]
[1768772031316,0.11783676,95408.0,95395.0,0.010486]
[1768772031717,0.11783676,95408.0,95390.0,0.20945547]
[1768772031718,0.11783676,95408.0,95396.0,0.010486]
[1768772033837,0.10990443,95420.0,95400.0,0.09079259]
[1768772034129,0.10990443,95424.0,95410.0,0.10456947]
[1768772034316,0.10990443,95424.0,95407.0,0.010485]
[1768772034317,0.10990443,95423.0,95407.0,0.010485]
[1768772034718,0.10990443,95423.0,95407.0,0.01064227]
[1768772034921,0.10990443,95423.0,95407.0,0.00015727]
[1768772035229,0.20513238,95423.0,95407.0,0.00015727]
[1768772035738,0.10990443,95422.0,95407.0,0.00015727]
[1768772037533,0.10990443,95422.0,95410.0,0.10456947]
[1768772037835,0.10990443,95422.0,95413.0,0.010484]
[1768772038035,0.10990443,95422.0,95414.0,0.010484]
[1768772038240,0.10990443,95422.0,95412.0,0.010484]
[1768772039534,0.10990443,95422.0,95410.0,0.11505347]
[1768772039834,0.10990443,95422.0,95411.0,0.010484]
[1768772040134,0.10990443,95422.0,95407.0,0.00015727]
[1768772040334,0.10990443,95422.0,95410.0,0.10456947]
[1768772040536,0.10990443,95422.0,95410.0,0.11505347]
[1768772041131,0.10990443,95427.0,95410.0,0.11505347]
[1768772041629,0.10990443,95427.0,95411.0,0.010484]
[1768772042133,0.20513238,95427.0,95411.0,0.010484]
[1768772042336,0.10990443,95426.0,95411.0,0.010484]
[1768772042536,0.10990443,95426.0,95412.0,0.010484]
[1768772044129,0.10990443,95426.0,95410.0,0.10456947]
[1768772044528,0.10990443,95424.0,95410.0,0.10456947]
[1768772045242,0.10790443,95424.0,95410.0,0.10456947]
[1768772045537,0.09522795,95419.0,95398.0,0.01229837]
[1768772046040,0.09522795,95419.0,95400.0,0.10456947]
[1768772046235,0.09522795,95419.0,95400.0,0.11505447]
[1768772046434,0.09522795,95419.0,95402.0,0.010485]
[1768772047136,0.10990443,95418.0,95402.0,0.010485]
[1768772047339,0.10990443,95418.0,95400.0,0.10456947]
[1768772047340,0.10990443,95415.0,95400.0,0.0944]
[1768772047545,0.10990443,95415.0,95400.0,0.19896947]
[1768772048443,0.10990443,95415.0,95402.0,0.010485]
[1768772048637,0.10990443,95415.0,95403.0,0.010485]
[1768772048840,0.10990443,95415.0,95400.0,0.19896947]
[1768772049147,0.10990443,95415.0,95402.0,0.010485]
[1768772050047,0.10990443,95415.0,95403.0,0.010485]
[1768772051836,0.10990443,95414.0,95403.0,0.010485]
[1768772052142,0.10990443,95414.0,95402.0,0.010485]
[1768772052443,0.10990443,95413.0,95400.0,0.19896947]
[1768772052644,0.10990443,95409.0,95398.0,0.01210017]
[1768772052833,0.10990443,95408.0,95397.0,0.0944]
[1768772053545,0.10990443,95408.0,95395.0,0.0944]
[1768772053934,0.10990443,95408.0,95397.0,0.010486]
[1768772054342,0.10990443,95408.0,95395.0,0.0944]
[1768772054644,0.10990443,95408.0,95398.0,0.10456947]
[1768772054843,0.09522795,95405.0,95388.0,0.07553377]
[1768772055037,0.09522795,95403.0,95393.0,0.010486]
[1768772055236,0.10990443,95402.0,95390.0,0.10456947]
[1768772055440,0.10990443,95402.0,95393.0,0.010486]
[1768772056042,0.10990443,95402.0,95387.0,0.010487]
[1768772056243,0.10990443,95402.0,95392.0,0.010486]
[1768772056542,0.10990443,95402.0,95391.0,0.010486]
[1768772057348,0.10990443,95402.0,95392.0,0.010486]
[1768772057648,0.10990443,95402.0,95390.0,0.10456947]
[1768772057849,0.10990443,95402.0,95394.0,0.010486]
[1768772058149,0.10990443,95402.0,95392.0,0.010486]
[1768772058951,0.10990443,95402.0,95391.0,0.010486]
[1768772059155,0.10990443,95402.0,95390.0,0.10456947]
[1768772059353,0.10990443,95402.0,95391.0,0.010486]
[1768772059542,0.10990443,95402.0,95392.0,0.010486]
[1768772059742,0.09522795,95409.0,95395.0,0.010486]
[1768772059951,0.20513238,95415.0,95397.0,0.010486]
[1768772060352,0.10990443,95414.0,95397.0,0.010486]
[1768772060747,0.10990443,95413.0,95393.0,0.010486]
[1768772060947,0.10990443,95418.0,95401.0,0.010485]
[1768772061155,0.0944,95417.0,95400.0,0.10456947]
[1768772061356,0.20430443,95417.0,95400.0,0.10456947]
[1768772061855,0.10990443,95416.0,95400.0,0.10456947]
[1768772062458,0.10990443,95416.0,95398.0,0.010486]
[1768772067867,0.10990443,95416.0,95400.0,0.10456947]
[1768772068470,0.10990443,95416.0,95396.0,0.10127859]
[1768772068769,0.11588938,95415.0,95400.0,0.10456947]
[1768772068973,0.11588938,95414.0,95400.0,0.10456947]
[1768772069164,0.11588938,95413.0,95400.0,0.10456947]
[1768772070171,0.11588938,95413.0,95394.0,0.0944]
[1768772070770,0.11588938,95413.0,95394.0,0.2049908]
[1768772071069,0.11588938,95413.0,95395.0,0.010486]
[1768772071371,0.09001852,95414.0,95396.0,0.010486]
[1768772071768,0.09001852,95414.0,95398.0,0.010485]
[1768772073769,0.09001852,95414.0,95394.0,0.2049908]
[1768772073969,0.09001852,95414.0,95400.0,0.10456947]
[1768772074369,0.09001852,95414.0,95396.0,0.010486]
[1768772074569,0.21028938,95417.0,95396.0,0.1105908]
[1768772074774,0.21028938,95417.0,95400.0,0.10456947]
[1768772075071,0.21028938,95417.0,95404.0,0.010485]
[1768772076868,0.21028938,95417.0,95400.0,0.10456947]
[1768772077068,0.21028938,95417.0,95401.0,0.010485]
[1768772077768,0.11798585,95416.0,95400.0,0.10456947]
[1768772077970,0.11798585,95416.0,95402.0,0.010485]
[1768772078275,0.11798585,95416.0,95397.0,0.1105908]
[1768772078276,0.20800437,95419.0,95400.0,0.21909174]
[1768772078468,0.20800437,95419.0,95406.0,0.010485]
[1768772079474,0.20800437,95419.0,95404.0,0.010485]
[1768772080966,0.11798585,95418.0,95400.0,0.10456947]
[1768772081267,0.09370793,95417.0,95402.0,0.010485]
[1768772081464,0.11798585,95416.0,95402.0,0.010485]
[1768772081664,0.21169378,95416.0,95402.0,0.010485]
[1768772082172,0.21169378,95416.0,95400.0,0.10456947]
[1768772082880,0.21169378,95416.0,95403.0,0.010485]
[1768772083073,0.21169378,95416.0,95404.0,0.010485]
[1768772083773,0.21169378,95416.0,95402.0,0.010485]
[1768772083972,0.21169378,95416.0,95403.0,0.010485]
[1768772084167,0.21169378,95416.0,95404.0,0.010485]
[1768772086170,0.21169378,95416.0,95401.0,0.010485]
[1768772086671,0.11798585,95415.0,95401.0,0.010485]
[1768772087170,0.11798585,95415.0,95398.0,0.010486]
[1768772087171,0.11798585,95415.0,95402.0,0.010485]
[1768772088376,0.21169378,95415.0,95402.0,0.010485]
[1768772088576,0.11798585,95414.0,95402.0,0.010485]
[1768772090777,0.11798585,95414.0,95398.0,0.010486]
[1768772091578,0.11798585,95414.0,95403.0,0.010485]
[1768772092474,0.11798585,95414.0,95400.0,0.010485]
[1768772092777,0.11798585,95414.0,95404.0,0.010485]
[1768772093174,0.11798585,95414.0,95405.0,0.010485]
[1768772093381,0.11798585,95414.0,95397.0,0.104886]
[1768772093382,0.11798585,95414.0,95403.0,0.010485]
[1768772093682,0.11798585,95414.0,95404.0,0.010485]
[1768772094787,0.11798585,95414.0,95405.0,0.010485]
[1768772095480,0.11798585,95414.0,95404.0,0.010485]
[1768772096282,0.11798585,95414.0,95407.0,0.010484]
[1768772096476,0.11798585,95414.0,95404.0,0.010485]
[1768772096676,0.11798585,95414.0,95405.0,0.010485]
[1768772096877,0.09370793,95415.0,95408.0,0.010484]
[1768772097079,0.11431494,95418.0,95399.0,0.010485]
[1768772097379,0.11431494,95429.0,95409.0,0.11739704]
[1768772097575,0.09804212,95430.0,95410.0,0.11739704]
[1768772097882,0.21235706,95430.0,95419.0,0.010483]
[1768772098283,0.21235706,95430.0,95415.0,0.010484]
[1768772098478,0.21235706,95430.0,95418.0,0.010483]
[1768772098678,0.21235706,95430.0,95417.0,0.010483]
[1768772099178,0.21235706,95430.0,95410.0,0.11739704]
[1768772099379,0.11431494,95434.0,95412.0,0.11739704]
[1768772099581,0.21235706,95434.0,95417.0,0.010483]
[1768772099778,0.11431494,95433.0,95417.0,0.010483]
[1768772100481,0.11431494,95432.0,95414.0,0.010484]
[1768772100678,0.21235706,95430.0,95413.0,0.010484]
[1768772100879,0.11431494,95429.0,95413.0,0.010484]
[1768772101685,0.11431494,95429.0,95409.0,0.0944]
[1768772101873,0.11431494,95427.0,95409.0,0.0944]
[1768772102382,0.11431494,95426.0,95409.0,0.0944]
[1768772102569,0.11431494,95426.0,95410.0,0.010484]
[1768772103986,0.11431494,95426.0,95409.0,0.0944]
[1768772104184,0.11431494,95425.0,95409.0,0.0944]
[1768772104586,0.11431494,95425.0,95410.0,0.010484]
[1768772106288,0.11431494,95425.0,95409.0,0.0944]
[1768772109088,0.11431494,95425.0,95410.0,0.010484]
[1768772110195,0.11431494,95425.0,95411.0,0.010484]
[1768772111192,0.11431494,95422.0,95410.0,0.010484]
[1768772112800,0.11431494,95422.0,95411.0,0.010484]
[1768772112991,0.11431494,95422.0,95412.0,0.010484]
[1768772114994,0.11431494,95422.0,95414.0,0.05645133]
[1768772120096,0.11431494,95422.0,95412.0,0.09436]
[1768772120297,0.11431494,95422.0,95411.0,0.09436]
[1768772125203,0.11431494,95422.0,95411.0,0.104844]
[1768772125500,0.11431494,95422.0,95411.0,0.09436]
[1768772126502,0.11431494,95422.0,95411.0,0.104844]
[1768772127806,0.11431494,95422.0,95412.0,0.010484]
[1768772128802,0.11431494,95422.0,95413.0,0.010484]
[1768772129306,0.11431494,95422.0,95414.0,0.010484]
[1768772129506,0.11431494,95422.0,95412.0,0.010484]
[1768772130010,0.09804212,95423.0,95412.0,0.010484]
[1768772130404,0.09804212,95423.0,95413.0,0.010484]
[1768772135207,0.09804212,95423.0,95412.0,0.010484]
[1768772139924,0.09804212,95423.0,95411.0,0.104844]
[1768772140327,0.09804212,95423.0,95412.0,0.010484]
[1768772141227,0.09804212,95423.0,95411.0,0.09436]
[1768772141430,0.13756829,95423.0,95411.0,0.09436]
[1768772146027,0.13756829,95423.0,95411.0,0.104844]
[1768772146329,0.13756829,95423.0,95412.0,0.010484]
[1768772146730,0.13756829,95423.0,95413.0,0.010484]
[1768772148531,0.13756829,95423.0,95411.0,0.104844]
[1768772149334,0.13674845,95431.0,95413.0,0.10452822]
[1768772149538,0.13674845,95431.0,95420.0,0.10452822]
[1768772149839,0.03864911,95430.0,95411.0,0.20758216]
[1768772150133,0.03864911,95430.0,95416.0,0.010484]
[1768772150335,0.13674845,95430.0,95416.0,0.010484]
[1768772150529,0.03864911,95429.0,95416.0,0.010484]
[1768772151034,0.03864911,95429.0,95417.0,0.010483]
[1768772155238,0.03864911,95429.0,95416.0,0.010484]
[1768772156240,0.03864911,95429.0,95414.0,0.010484]
[1768772156742,0.04105572,95428.0,95411.0,0.09436]
[1768772156934,0.04105572,95428.0,95413.0,0.010484]
[1768772157237,0.04105572,95428.0,95411.0,0.09436]
[1768772157446,0.04105572,95428.0,95413.0,0.010484]
[1768772157937,0.04105572,95428.0,95411.0,0.09436]
[1768772158125,0.04105572,95428.0,95415.0,0.010484]
[1768772162641,0.04105572,95428.0,95416.0,0.010484]
[1768772163835,0.04105572,95428.0,95417.0,0.010483]
[1768772165351,0.04105572,95428.0,95418.0,0.010483]
[1768772166139,0.09205446,95429.0,95412.0,0.010484]
[1768772166446,0.09205446,95429.0,95420.0,0.010483]
[1768772167945,0.09205446,95429.0,95418.0,0.010483]
[1768772168844,0.09205446,95429.0,95412.0,0.010484]
[1768772169049,0.09205446,95429.0,95419.0,0.010483]
[1768772169354,0.09205446,95429.0,95415.0,0.010484]
[1768772169847,0.09205446,95429.0,95419.0,0.010483]
[1768772170642,0.09205446,95429.0,95413.0,0.010484]
[1768772171035,0.09205446,95429.0,95419.0,0.010483]
[1768772171239,0.09205446,95429.0,95420.0,0.010483]
[1768772171447,0.09205446,95429.0,95413.0,0.010484]
[1768772171749,0.09205446,95429.0,95419.0,0.010483]
[1768772172447,0.13445204,95429.0,95419.0,0.010483]
[1768772173250,0.13445204,95429.0,95416.0,0.010484]
[1768772173441,0.13445204,95429.0,95419.0,0.010483]
[1768772173641,0.13445204,95429.0,95420.0,0.010483]
[1768772174755,0.13445204,95429.0,95411.0,0.07553377]
[1768772174756,0.13445204,95429.0,95421.0,0.010483]
[1768772175648,0.13445204,95429.0,95418.0,0.010483]
[1768772175851,0.13445204,95429.0,95420.0,0.010483]
[1768772177249,0.13445204,95429.0,95419.0,0.010483]
[1768772177445,0.13445204,95429.0,95418.0,0.010483]
[1768772178153,0.13445204,95429.0,95419.0,0.010483]
[1768772178352,0.13445204,95429.0,95418.0,0.010483]
[1768772179856,0.13445204,95429.0,95419.0,0.010483]
[1768772182551,0.13445204,95429.0,95420.0,0.010483]
[1768772182859,0.13445204,95429.0,95419.0,0.010483]
[1768772183859,0.13445204,95429.0,95418.0,0.010483]
[1768772184860,0.04265571,95428.0,95417.0,0.010483]
[1768772185055,0.04265571,95428.0,95418.0,0.010483]
[1768772190263,0.04265571,95428.0,95419.0,0.010483]
[1768772190562,0.04265571,95428.0,95412.0,0.010484]
[1768772190864,0.04265571,95428.0,95419.0,0.010483]
[1768772193167,0.04265571,95428.0,95420.0,0.010483]
[1768772194272,0.04265571,95428.0,95417.0,0.010483]
[1768772194468,0.04265571,95428.0,95420.0,0.010483]
[1768772195762,0.10452822,95430.0,95413.0,0.11553696]
[1768772196669,0.10452822,95430.0,95416.0,0.010483]
[1768772196870,0.10452822,95430.0,95413.0,0.12602096]
[1768772197065,0.10452822,95430.0,95420.0,0.010483]
[1768772197871,0.10452822,95430.0,95419.0,0.010483]
[1768772198576,0.14721089,95430.0,95419.0,0.010483]
[1768772199077,0.14721089,95430.0,95417.0,0.010483]
[1768772200177,0.14721089,95430.0,95416.0,0.010484]
[1768772202678,0.04265812,95429.0,95416.0,0.010484]
[1768772203079,0.04254542,95427.0,95412.0,0.09436]
[1768772203280,0.09500659,95424.0,95412.0,0.09436]
[1768772203475,0.04254542,95421.0,95412.0,0.09436]
[1768772203677,0.00170037,95421.0,95412.0,0.09436]
[1768772204875,0.09500659,95422.0,95412.0,0.09436]
[1768772209880,0.09500659,95418.0,95398.0,0.09442263]
[1768772210180,0.09500659,95418.0,95400.0,0.09436]
[1768772210381,0.09500659,95418.0,95398.0,0.09436]
[1768772211087,0.09500659,95418.0,95397.0,0.010486]
[1768772211281,0.09500659,95418.0,95398.0,0.010486]
[1768772211584,0.09500659,95418.0,95396.0,0.010486]
[1768772211778,0.09500659,95418.0,95395.0,0.104846]
[1768772211977,0.09500659,95418.0,95396.0,0.010486]
[1768772212184,0.09500659,95418.0,95395.0,0.104846]
[1768772212576,0.09500659,95418.0,95396.0,0.010486]
[1768772212882,0.09500659,95418.0,95395.0,0.09436]
[1768772213379,0.09500659,95418.0,95400.0,0.010485]
[1768772213578,0.09500659,95418.0,95401.0,0.010485]
[1768772213779,0.09500659,95418.0,95396.0,0.010486]
[1768772213981,0.09500659,95418.0,95399.0,0.010485]
[1768772214479,0.09500659,95418.0,95400.0,0.010485]
[1768772215382,0.09500659,95418.0,95399.0,0.010485]
[1768772218880,0.09500659,95418.0,95397.0,0.010486]
[1768772219086,0.09500659,95418.0,95399.0,0.010485]
[1768772219390,0.09500659,95418.0,95400.0,0.010485]
[1768772221584,0.09500659,95418.0,95398.0,0.010486]
[1768772222186,0.09500659,95418.0,95395.0,0.09436]
[1768772222784,0.09500659,95418.0,95396.0,0.010486]
[1768772223590,0.09500659,95418.0,95398.0,0.010486]
[1768772223783,0.09500659,95418.0,95396.0,0.010486]
[1768772223981,0.09500659,95418.0,95401.0,0.010485]
[1768772225486,0.09500659,95418.0,95402.0,0.010485]
[1768772226387,0.09500659,95418.0,95397.0,0.010486]
[1768772226588,0.09500659,95418.0,95403.0,0.010485]
[1768772226887,0.09500659,95418.0,95403.0,0.01039006]
[1768772227088,0.09500659,95418.0,95397.0,0.010486]
[1768772227289,0.09500659,95418.0,95401.0,0.010485]
[1768772228288,0.09500659,95418.0,95402.0,0.010485]
[1768772229088,0.09500659,95418.0,95401.0,0.010485]
[1768772233190,0.09500659,95418.0,95402.0,0.010485]
[1768772233391,0.09436,95420.0,95402.0,0.010485]
[1768772236482,0.09436,95420.0,95398.0,0.09670309]
[1768772236679,0.09436,95420.0,95403.0,0.010485]
[1768772237889,0.09436,95420.0,95404.0,0.010485]
[1768772238089,0.09436,95420.0,95403.0,0.010485]
[1768772238490,0.09436,95420.0,95400.0,0.010485]
[1768772238694,0.09436,95420.0,95403.0,0.010485]
[1768772239092,0.09436,95420.0,95400.0,0.010485]
[1768772239287,0.09436,95420.0,95403.0,0.010485]
[1768772239994,0.09436,95420.0,95404.0,0.010485]
[1768772240689,0.09436,95420.0,95403.0,0.010485]
[1768772240892,0.09436,95420.0,95402.0,0.010485]
[1768772241286,0.18232026,95420.0,95402.0,0.010485]
[1768772241782,0.08796026,95420.0,95402.0,0.010485]
[1768772241980,0.18232026,95420.0,95402.0,0.010485]
[1768772244391,0.18232026,95420.0,95401.0,0.010485]
[1768772244596,0.18232026,95420.0,95399.0,0.010485]
[1768772244800,0.18232026,95420.0,95401.0,0.010485]
[1768772245496,0.18232026,95420.0,95402.0,0.010485]
[1768772245999,0.18232026,95420.0,95399.0,0.010485]
[1768772246208,0.18232026,95420.0,95402.0,0.010485]
[1768772249697,0.18232026,95420.0,95400.0,0.010485]
[1768772249898,0.08798062,95438.0,95412.0,0.09814561]
[1768772250104,0.08798062,95436.0,95412.0,0.09814561]
[1768772250401,0.02509365,95435.0,95418.0,0.010483]
[1768772250704,0.08798062,95436.0,95415.0,0.010484]
[1768772250898,0.08785662,95434.0,95413.0,0.09814561]
[1768772251098,0.08785662,95434.0,95415.0,0.010484]
[1768772251299,0.08785662,95434.0,95413.0,0.09814561]
[1768772251300,0.08785662,95434.0,95416.0,0.010484]
[1768772252101,0.08785662,95434.0,95417.0,0.010483]
[1768772253002,0.08785662,95434.0,95413.0,0.09814561]
[1768772253205,0.18221662,95434.0,95416.0,0.010484]
[1768772257905,0.18221662,95434.0,95415.0,0.010484]
[1768772260105,0.18221662,95434.0,95414.0,0.010484]
[1768772260602,0.18221662,95434.0,95415.0,0.010484]
[1768772263005,0.18221662,95434.0,95413.0,0.09814561]
[1768772263200,0.18221662,95434.0,95413.0,0.10862961]
[1768772263905,0.18221662,95434.0,95417.0,0.010483]
[1768772264905,0.18221662,95434.0,95418.0,0.010483]
[1768772265105,0.18221662,95434.0,95420.0,0.010483]
[1768772265409,0.18221662,95434.0,95422.0,0.010483]
[1768772265811,0.09436,95434.0,95424.0,0.010483]
[1768772266708,0.09436,95434.0,95415.0,0.09444941]
[1768772266908,0.09436,95434.0,95422.0,0.010483]